Cogmind - Beta 13 @@@ ROGUE MODE // 2024.03.31 @ 02:54:12 Player: Isopropylpod Result: Self-destructed Performance ------------- Evolutions (1) 500 Regions Visited (3) 600 Robots Destroyed (17) 85 Value Destroyed (273) 273 Prototype IDs (3) 60 Alien Tech Used (0) 0 Bonus (0) 0 TOTAL SCORE: 1518 Bonus ------- None Cogmind --------- Core Integrity 400/400 Matter 259/300 Energy 160/160 System Corruption 5% Temperature Warning (342) Movement Hovering (52) Location -9/Materials Parts ------- > --- POWER (1) -------- Light Nuclear Core > --- PROPULSION (3) --- Hover Unit Hover Unit Hover Unit > --- UTILITY (3) ------ Small Storage Unit Signal Interpreter > --- WEAPON (2) ------- EM Pulse Gun > --- INVENTORY (8) ---- Light Ion Engine Light Ion Engine Wheel Hover Unit Flight Unit Heat Sink Seismic Detector Rocket Launcher Peak State ------------ > --- POWER ------------ Light Nuclear Core > --- PROPULSION ------- Hover Unit Hover Unit Hover Unit > --- UTILITY ---------- Small Storage Unit Signal Interpreter Seismic Detector > --- WEAPON ----------- EM Pulse Gun EM Pulse Gun > --- INVENTORY -------- Light Ion Engine Light Ion Engine Wheel Flight Unit Heat Sink Sensor Array Light Assault Rifle Rocket Launcher [Rating: 11] Favorites ----------- Power Light Nuclear Core Engine Light Ion Engine Power Core Light Nuclear Core Propulsion Hover Unit Leg Aluminum Leg Hover Unit Hover Unit Utility Small Storage Unit Device Seismic Detector Storage Small Storage Unit Processor Signal Interpreter Weapon EM Pulse Gun Energy Gun EM Pulse Gun Build | -11 -10 -10 -9 ------- Run | Yrd Mat Min Mat Slots Evolved 2 | . . . 2 Power . | . . . . Propulsion 1 | . . . 1 Utility 1 | . . . 1 Weapon . | . . . . Parts Attached 23 | 7 9 1 6 Power 3 | 1 1 . 1 Engine 1 | 1 . . . Core 2 | . 1 . 1 Reactor . | . . . . Propulsion 8 | 2 5 . 1 Treads . | . . . . Leg 4 | 2 2 . . Wheel . | . . . . Hover 4 | . 3 . 1 Flight . | . . . . Utility 8 | 2 3 1 2 Device 3 | 1 . 1 1 Storage 4 | 1 3 . . Processor 1 | . . . 1 Hackware . | . . . . Protection . | . . . . Artifact . | . . . . Weapon 4 | 2 . . 2 Energy Gun 4 | 2 . . 2 Energy Cannon . | . . . . Ballistic Gun . | . . . . Ballistic Cannon . | . . . . Launcher . | . . . . Special Weapon . | . . . . Impact Weapon . | . . . . Slashing Weapon . | . . . . Piercing Weapon . | . . . . Special Melee Weapon . | . . . . Unidentified Prototypes 1 | . . . 1 Corrupted Parts 2 | . . . 2 System Corruption 5 | . . . 5 Parts Lost 3 | . . . 3 Power . | . . . . Propulsion . | . . . . Utility 1 | . . . 1 Weapon 2 | . . . 2 Highest Loss Streak 3 | . . . 3 To Critical Strikes . | . . . . Average Slot Usage (%) 90 | . 91 92 86 Engine 1 | . 3 . . Core 12 | . 10 14 11 Leg 3 | . 10 . . Hover 24 | . 17 28 28 Device 6 | . 6 6 10 Storage 13 | . 14 14 11 Energy Gun 26 | . 28 28 19 Naked Turns . | . . . . Heaviest Build 20 | 13 20 15 15 Greatest Support 20 | 20 20 12 18 Greatest Overweight (x) 3 | 3 2 1 1 Average Overweight (x) . | . . 1 . Largest Inventory Capacity 10 | 8 10 8 8 Average Capacity 8 | 7 8 8 8 Most Carried 8 | 3 5 6 8 Average Carried 5 | 1 3 5 7 Final Capacity 8 | 8 8 8 8 Final Carried 8 | 3 4 6 8 Class Distribution -------------------- 92% | Mutant 7% | Scavenger-Mutant Dominant Class ---------------- Mutant | -10/Materials Mutant | -10/Mines Scavenger-Mutant | -9/Materials Resources | -11 -10 -10 -9 ----------- Run | Yrd Mat Min Mat Matter Collected 402 | 114 252 17 19 Remotely . | . . . . Salvage Created 667 | 154 362 132 19 Parts 39 | 11 14 10 4 Haulers Intercepted . | . . . . Recyclers Shooed 3 | 1 1 1 . Parts Field Recycled . | . . . . Retrieved Matter . | . . . . Parts Self-Destructed . | . . . . Prevented . | . . . . Kills | -11 -10 -10 -9 ------- Run | Yrd Mat Min Mat Combat Hostiles Destroyed 7 | . 4 3 . Guns 2 | . 2 . . AOE 5 | . 2 3 . Classes Destroyed 5 | 2 2 1 . Tunneler 4 | 3 . 1 . Recycler 4 | 1 2 1 . Watcher 2 | . 1 . 1 Swarmer 3 | . . 3 . Grunt 4 | . 4 . . Best Kill Streak 3 | 3 2 3 1 Combat Bots Only 3 | . 2 3 . Max Kills in Single Turn 3 | 1 2 3 1 Gunslinging . | . . . . Exploded 3 | . 2 3 . Melee . | . . . . Uniques/NPCs Destroyed . | . . . . Combat | -11 -10 -10 -9 -------- Run | Yrd Mat Min Mat Hostile Shots Fired 20 | . 8 . 12 Missed 4 | . 2 . 2 Damage Taken 253 | . 96 12 145 Core 40 | . 28 12 . Absorbed by Shields . | . . . . Core Remaining (%) 92 | 100 . 84 . Volleys Fired 34 | 9 13 5 7 Largest 2 | 2 2 2 2 Hottest 80 | 80 80 80 80 Shots Fired 65 | 18 26 10 11 Gun 65 | 18 26 10 11 Cannon . | . . . . Launcher . | . . . . Special . | . . . . Kinetic . | . . . . Thermal . | . . . . Explosive . | . . . . Electromagnetic 65 | 18 26 10 11 Robot Hit Streak 10 | 3 10 6 9 Robot Miss Streak 5 | 1 4 5 1 Penetration Max . | . . . . Secondary Targets . | . . . . Shots Hit Robots 40 | 9 16 6 9 Core Hits 25 | 5 14 5 1 Critical Kills . | . . . . Critical Parts Destroyed . | . . . . Critical Strikes 1 | . . . 1 Corrupt 1 | . . . 1 Melee Attacks . | . . . . Impact . | . . . . Slashing . | . . . . Piercing . | . . . . Sneak Attacks . | . . . . Combat Hostiles . | . . . . Follow-up Attacks . | . . . . Damage Inflicted 880 | 150 382 231 117 Guns 606 | 150 247 92 117 Cannons . | . . . . Explosions 274 | . 135 139 . Melee . | . . . . Ramming . | . . . . Kinetic . | . . . . Thermal 274 | . 135 139 . Explosive . | . . . . Electromagnetic 606 | 150 247 92 117 Impact . | . . . . Slashing . | . . . . Piercing . | . . . . Highest Corruption 5 | . 2 2 5 Average Corruption 2 | . 2 2 3 Corruption Purged . | . . . . Corruption Blocked . | . . . . Effects 7 | . 1 5 1 Message Errors 1 | . . 1 . Matter Fused 2 | . 1 1 . Heat Flow Errors 2 | . . 1 1 Energy Discharges 1 | . . 1 . Data Loss (major) 1 | . . 1 . Overload Shots . | . . . . Overflow Damage 13 | . . 13 . Projectiles . | . . . . Explosions 13 | . . 13 . Melee . | . . . . Knockbacks . | . . . . Impact . | . . . . Kinetic . | . . . . Secondary . | . . . . Self-Inflicted Damage 41 | . 29 12 . Shots 2 | . 1 1 . Rammed . | . . . . Targets Rammed . | . . . . Kicked . | . . . . Crushed . | . . . . Highest Temperature 348 | 144 156 173 348 Average Temperature 69 | 68 54 45 153 Received Heat Transfer 105 | . 33 . 72 Effects 3 | . . . 3 Shutdowns 1 | . . . 1 Interference 2 | . . . 2 Siege Activations . | . . . . Robots Corrupted . | . . . . Combat Hostiles . | . . . . Parts Fried 4 | 2 2 . . Impact Corruptions . | . . . . Robots Melted . | . . . . Combat Hostiles . | . . . . Parts Melted 1 | . 1 . . Heat Transferred 350 | . 300 50 . Parts Sabotaged . | . . . . Parts Stolen . | . . . . Parts Stripped . | . . . . Power Chain Reactions 4 | . 2 2 . Alert | -11 -10 -10 -9 ------- Run | Yrd Mat Min Mat Peak Influence 256 | 20 256 188 37 Initial 99 | . 13 99 . Average 117 | 5 132 156 15 Maximum Alert Level 1 | . 1 . . Low Security (%) 94 | 100 83 100 100 Level 1 5 | . 16 . . Level 2 . | . . . . Level 3 . | . . . . Level 4 . | . . . . Level 5 . | . . . . High Security . | . . . . Max Security . | . . . . Squads Dispatched 2 | . 2 . . Investigation 1 | . 1 . . Extermination . | . . . . Reinforcement 1 | . 1 . . Assault . | . . . . Garrison . | . . . . Intercept . | . . . . Searches Triggered . | . . . . Construction Impeded . | . . . . Haulers Reinforced . | . . . . Active Scanning Responses . | . . . . Cargo Convoy Interrupts . | . . . . Stealth | -11 -10 -10 -9 --------- Run | Yrd Mat Min Mat Distress Signals 1 | . . . 1 Communications Jammed . | . . . . Distress Signals . | . . . . Times Spotted 10 | . 8 . 2 Peak Tracking Total 4 | . 4 . 2 Tactical Retreats 1 | . 1 . . Traps | -11 -10 -10 -9 ------- Run | Yrd Mat Min Mat Traps Triggered 2 | . 2 . . Indirectly . | . . . . Trap Hack Attempts . | . . . . Triggered . | . . . . Disarmed . | . . . . Reprogrammed . | . . . . Reused . | . . . . Traps Extracted . | . . . . Installed . | . . . . Triggered . | . . . . Machines | -11 -10 -10 -9 ---------- Run | Yrd Mat Min Mat Machines Disabled 1 | . . . 1 Max in Single Turn 1 | . . . 1 Machines Repaired . | . . . . Machines Dismantled . | . . . . Machines Sabotaged . | . . . . Overloaded Fab Kills . | . . . . Hacking | -11 -10 -10 -9 --------- Run | Yrd Mat Min Mat Machines Accessed 2 | . 1 . 1 Terminals 2 | . 1 . 1 Fabricators . | . . . . Repair Stations . | . . . . Recycling Units . | . . . . Scanalyzers . | . . . . Garrison Access . | . . . . Total Hacks 7 | . 2 . 5 Successful 2 | . 1 . 1 Failed 5 | . 1 . 4 Catastrophic 2 | . 1 . 1 Database Lockouts . | . . . . Manual . | . . . . Terminals 7 | . 2 . 5 Fabricators . | . . . . Repair Stations . | . . . . Recycling Units . | . . . . Scanalyzers . | . . . . Garrison Access . | . . . . Terminal Hacks 2 | . 1 . 1 Prototype ID Bank 1 | . . . 1 Zone Layout 1 | . 1 . . Fabricator Hacks . | . . . . Repair Station Hacks . | . . . . Recycling Unit Hacks . | . . . . Scanalyzer . | . . . . Garrison Access Hacks . | . . . . Unauthorized Hacks . | . . . . Terminals . | . . . . Fabricators . | . . . . Repair Stations . | . . . . Recycling Units . | . . . . Scanalyzers . | . . . . Garrison Access . | . . . . Data Cores Recovered . | . . . . Used . | . . . . Hacking Detections 2 | . 1 . 1 Full Trace Events . | . . . . Feedback Events . | . . . . Feedback Blocked . | . . . . Robot Schematics Acquired . | . . . . Robots Built . | . . . . Authchips . | . . . . Time . | . . . . Total Robot Build Rating . | . . . . Part Schematics Acquired . | . . . . Parts Built . | . . . . Authchips . | . . . . Time . | . . . . Total Part Build Rating . | . . . . Parts Repaired . | . . . . Time . | . . . . Parts Recycled . | . . . . Recycled Matter . | . . . . Retrieved Matter . | . . . . Retrieved Components . | . . . . Parts Scanalyzed . | . . . . Part Schematics Acquired . | . . . . Parts Damaged . | . . . . Bothacking | -11 -10 -10 -9 ------------ Run | Yrd Mat Min Mat Used RIF Installer . | . . . . Robots Hacked . | . . . . Non-combat . | . . . . Combat . | . . . . Robot Hacks Applied . | . . . . Relay Couplers Released . | . . . . Fabnet Peak Effective % . | . . . . Robots Rewired . | . . . . Allies Hacked . | . . . . Hacks Repelled . | . . . . Allies | -11 -10 -10 -9 -------- Run | Yrd Mat Min Mat Total Allies . | . . . . Largest Group . | . . . . Highest-Rated Group . | . . . . Highest-Rated Ally . | . . . . Total Orders . | . . . . Ally Attacks . | . . . . Total Damage . | . . . . Kills . | . . . . Allies Corrupted . | . . . . Allies Melted . | . . . . Intel | -11 -10 -10 -9 ------- Run | Yrd Mat Min Mat Robot Analysis Total . | . . . . Derelict Logs Recovered 1 | . . 1 . Drone Launches . | . . . . Drone Recoveries . | . . . . Exploration | -11 -10 -10 -9 ------------- Run | Yrd Mat Min Mat Turns Passed 980 | 97 299 469 115 Spaces Moved 726 | 46 200 389 91 Core 10 | 10 . . . Treads . | . . . . Legs 99 | 36 63 . . Wheels . | . . . . Hover 617 | . 137 389 91 Flight . | . . . . Fastest Speed 50 | 50 116 116 52 Average Speed 112 | 124 118 116 77 Slowest Speed 200 | 200 190 116 116 Overloaded Moves . | . . . . Propulsion Burnouts . | . . . . Robots Hopped . | . . . . Cave-ins Triggered . | . . . . Exploration Rate (%) 28 | 4 28 76 5 Regions Visited 3 Branch Regions 1 Pre-discovered Areas . | . . . . Known Exits Taken . | . . . . Unknown Exits Taken 3 | 1 1 1 . Scrap Searched 1 | . . 1 . Spaces Dug . | . . . . Terrain Destroyed 14 | . 5 9 . Melee . | . . . . Projectile . | . . . . AOE 14 | . 5 9 . Terrain Rammed . | . . . . Walls Destroyed . | . . . . Machines Disabled . | . . . . Actions | -11 -10 -10 -9 --------- Run | Yrd Mat Min Mat Total 817 | 64 236 396 121 Wait 17 | . 5 . 12 Move 723 | 45 199 388 91 Hop . | . . . . Pick Up 9 | 3 1 2 3 Fast Attach 20 | 7 6 1 6 Attach . | . . . . Detach . | . . . . Swap 4 | . 3 . 1 Drop 10 | . 9 . 1 Fire 34 | 9 13 5 7 Melee . | . . . . Ram . | . . . . Kick . | . . . . Crush . | . . . . Escape Stasis . | . . . . Rewire . | . . . . Trap . | . . . . Miscellaneous . | . . . . Route ------- -11/Scrapyard -10/Materials -10/Mines (discovered 3 exits: *Mat x2 / [*Exi]) -9/Materials History --------- Turn | Location | Event 16 | -11/Scrapyard | Discovered new exit (range 15) 98 | -11/Scrapyard | Entered Materials 252 | -10/Materials | Discovered new exit (range 10) 304 | -10/Materials | Build established: Mutant 397 | -10/Materials | Entered Mines 455 | -10/Mines | Received a Rocket Launcher from a helpful Derelict 478 | -10/Mines | Deemed a non-threat by the Exiles lab entrance 479 | -10/Mines | Discovered new exit (range 5) 562 | -10/Mines | Discovered new exit (range 14) 741 | -10/Mines | Learned Materials stockpile data 846 | -10/Mines | Discovered new exit (range 13) 866 | -10/Mines | Entered Materials 866 | -9/Materials | Evolved 2 slots: Propulsion x1, Utility x1 981 | -9/Materials | Self-destructed Last Messages --------------- >>Prototypes Downloading prototype IDs... Imp. Medium Laser Imp. Assault Rifle Terminal disabled. EM Pulse Gun destroyed. System corrupted: Heat flow error (+219). Sensor Array destroyed. Overheating: System interference. Signal Interpreter temporarily disabled. EM Pulse Gun temporarily disabled. R-06 Scavenger collects Lgt. Assault Rifle. Acquired Prototype Energy Gun. Identified Imp. EM Shotgun. Faulty integration triggers meltdown. Hover Unit damaged (-12). Sml. Storage Unit damaged (-39). EM Pulse Gun damaged (-12). Critical hit (Burn: +37). Power failure, Lgt. Nuclear Core shutdown. Map ----- +----------------------------------------------------+ | ?????????????????????????????????????????????????? | | ?????????????????????????????????????????????????? | | ?????????????????????????????????????????????????? | | ?????????????????????????????????????????????????? | | ??[??????????????????????????????????????????????? | | ?????????????????????????????????????????????????? | | ????????????????????? ???????????????????????????? | | ?????????##+###?????""???????????????????????????? | | ?????????# #??? """???????????????????????????? | | ?????????# #?? "?????????????????????????????? | | ?????????# ## ???????????????????????????????? | | ?????????# / ?????????????????????????????????? | | ?????????# #??????????????????????????????????? | | ?????????# #??????????????????????????????????? | | ?????????# * #??????????????????????????????????? | | ?????????+ #????????=?????????????????????????? | | ?????????# #??????????????????????????????????? | | ?????????###+##??????????????????????????????????? | | ???????????# #???????????????????????????????????? | | ???????????# #???????????????????????????????????? | | ???????????# #???????????????????????????????????? | | ???????????# #?????????###########???????????????? | | ??????????## ########### [ r #???????????????? | | ??????????# /Y ! #???????????????? | | ??????????# ########## ! ! #???????????????? | | ??????????# #????????# @ #???????????????? | | ??????????# #????????###########???????????????? | | ??????????# #??????????????????????????????????? | | ??????????# #????????????????????[?????????????? | | ??????##### ########???????????????????????????? | | ??????# #???????????????????????????? | | ??????# #???????????????????????????? | | ??????# #???????????????????????????? | | ????######+####### #???????????????????????????? | | ????# #? #???????????????????????????? | | ????# """ #?? #???????????????????????????? | | ????# """ ! #???+???????????????????????????? | | ????# """ !! #???????????????????????????????? | | ????# #???????????????????????????????? | | ????##############???????????????????????????????? | | ?????????????????????????????????????????????????? | | ?????????????????????????????????????????????????? | | ?????????????????????????????????????????????????? | | ?????????????????????????????????????????????????? | | ?????????????????????????????????????????????????? | | ?????????????????????????????????????????????????? | | ?????????????????????????????????????????????????? | | ?????????????????????????????????????????????????? | | ?????????????????????????????????????????????????? | | ?????????????????????????????????????????????????? | +----------------------------------------------------+ Best States ------------- Heat Dissipation 28 Energy Generation 14 Energy Capacity 160 Matter Stores 300 Matter Capacity 300 Sight Range 16 Robot Scan Range 14 Terrain Scan Density 10 Evasion (%) 55 Item Schematics ----------------- None Robot Schematics ------------------ None Fabricated ------------ Nothing Alien Tech Used ----------------- None Achievements -------------- None Challenges ------------ None Game ------ Seed EnergyCoreSplitter Manual? 0 Play Time 00:14:35 Cumulative 5.9 hours Start 2024.03.31 @ 02:41:50 End 2024.03.31 @ 02:54:12 Sessions 1 Manual Loads 0 Difficulty Rogue Special Mode None Game No. 12 Rogue 12 Adventurer 0 Explorer 0 Win Type - Total 0 Types 0/0/0/0/0/0/0/0/0 Lore% 5 Gallery% 12 Achievement% 11 Wizard Run 0 Options --------- Layout 1 ASCII 0 Keyboard 0 Movement Arrows Keybinds 0 Fullscreen 1 Font 36/Smallcaps Map View 50x40 Zoom Use 1% Tactical HUD 0 Map Filters NONE Filters NONE Steam 1 RUN: 20bab0c6-af55-4fcb-a6ba-cb923757d997